bitfinex-derivatives/quotes_ETHF0:USTF0_20230106
["timestamp","ask_amount","ask_price","bid_price","bid_amount"]
[1672989865778,3.60090069,1246.9,1246.8,11.97650998]
[1672989866088,6.80870069,1246.9,1246.8,11.97650998]
[1672989867465,3.60090069,1246.9,1246.8,11.97650998]
[1672989867770,6.80870069,1246.9,1246.8,11.97650998]
[1672989868618,3.2078,1246.9,1246.8,11.97650998]
[1672989868932,6.80870069,1246.9,1246.8,11.97650998]
[1672989870719,3.60090069,1246.9,1246.8,11.97650998]
[1672989870923,6.80870069,1246.9,1246.8,11.97650998]
[1672989871243,3.60090069,1246.9,1246.8,11.97650998]
[1672989871446,6.80870069,1246.9,1246.8,11.97650998]
[1672989871867,3.2078,1246.9,1246.8,11.97650998]
[1672989872077,3.2078,1246.9,1246.8,10.77340291]
[1672989872815,6.10090069,1247.0,1246.8,10.77340291]
[1672989873133,3.2078,1246.9,1246.8,10.77340291]
[1672989873658,3.2078,1246.9,1246.8,11.97644747]
[1672989876922,6.10090069,1247.0,1246.8,11.97644747]
[1672989877231,3.2078,1246.9,1246.8,11.97644747]
[1672989877442,6.10090069,1247.0,1246.8,11.97644747]
[1672989877653,3.2078,1246.9,1246.8,11.97644747]
[1672989877864,3.2078,1246.9,1246.8,10.77340291]
[1672989878918,6.10090069,1247.0,1246.8,10.77340291]
[1672989879235,3.2078,1246.9,1246.8,10.77340291]
[1672989881128,3.2078,1246.9,1246.8,12.57770219]
[1672989881869,6.20840264,1246.9,1246.8,14.60143636]
[1672989882069,2.40067055,1246.9,1246.8,25.62503559]
[1672989882390,2.40067055,1246.9,1246.8,23.21861558]
[1672989882800,4.20016686,1246.9,1246.8,25.62265261]
[1672989884070,2.40067055,1246.9,1246.8,22.61805338]
[1672989885007,1.7990788,1246.9,1246.8,22.61805338]
[1672989885219,1.7990788,1246.9,1246.8,25.62265261]
[1672989885542,4.19974935,1246.9,1246.8,25.62265261]
[1672989885750,4.19974935,1246.9,1246.8,22.61805338]
[1672989886276,1.7990788,1246.9,1246.8,25.62265261]
[1672989886700,1.7990788,1246.9,1246.8,22.61805338]
[1672989887538,1.7990788,1246.9,1246.8,25.62265261]
[1672989888272,1.7990788,1246.9,1246.8,22.61805338]
[1672989889431,2.99790522,1246.9,1246.8,22.61805338]
[1672989889744,2.99791588,1246.9,1246.8,22.61805338]
[1672989894900,1.19883708,1246.9,1246.8,22.61805338]
[1672989902376,2.99791588,1246.9,1246.8,22.61805338]
[1672989904684,1.7990788,1246.9,1246.8,22.99729642]
[1672989904898,1.7990788,1246.9,1246.8,21.19643994]
[1672989905117,1.7990788,1246.9,1246.8,22.99739142]
[1672989905428,2.99691931,1246.9,1246.8,21.19643994]
[1672989906266,1.7990788,1246.9,1246.8,22.99747559]
[1672989906474,1.7990788,1246.9,1246.8,21.19643994]
[1672989907936,1.7990788,1246.9,1246.8,22.99759042]
[1672989908258,1.7990788,1246.9,1246.8,21.19643994]
[1672989908467,1.7990788,1246.9,1246.8,22.99767701]
[1672989908674,1.7990788,1246.9,1246.8,21.19643994]
[1672989909955,1.7990788,1246.9,1246.8,22.61799391]
[1672989913824,1.19849254,1246.9,1246.8,23.21855611]
[1672989914036,5.49320715,1247.0,1246.8,20.21395688]
[1672989914352,4.29471461,1247.0,1246.9,12.92126638]
[1672989914552,1.79471461,1247.0,1246.9,14.34271796]
[1672989915824,4.19538516,1247.0,1246.9,14.34271796]
[1672989916241,4.19538516,1247.0,1246.9,12.92126638]
[1672989916562,4.19538516,1247.0,1246.9,14.34273679]
[1672989916771,2.40067055,1247.0,1246.9,14.34273679]
[1672989916979,5.60847055,1247.0,1246.9,14.34274851]
[1672989917192,5.60847055,1247.0,1246.9,14.72354783]
[1672989917402,5.60847055,1247.0,1246.9,12.92126638]
[1672989917931,5.60847055,1247.0,1246.9,14.34273891]
[1672989918241,5.60847055,1247.0,1246.9,12.92126638]
[1672989918451,5.60847055,1247.0,1246.9,14.34274104]
[1672989918662,5.60847055,1247.0,1246.9,12.92126638]
[1672989918873,5.60847055,1247.0,1246.9,14.34274823]
[1672989920664,1.19992926,1247.0,1246.9,15.14828185]
[1672989921810,2.40067055,1247.1,1246.9,18.15380623]
[1672989922022,2.40067055,1247.1,1247.0,14.34492051]
[1672989922654,5.40127319,1247.1,1247.0,12.92343866]
[1672989922865,2.40067055,1247.1,1247.0,14.34481829]
[1672989927801,2.17614066,1247.2,1247.0,18.15370401]
[1672989928017,2.17614066,1247.2,1247.1,16.12730401]
[1672989928225,1.19940301,1247.2,1247.1,16.12730401]
[1672989930428,1.19940301,1247.2,1247.1,15.52288514]
[1672989930952,1.19940301,1247.2,1247.1,20.52288514]
[1672989931163,1.19940301,1247.2,1247.1,23.52840952]
[1672989932008,1.19940301,1247.2,1247.1,23.52723346]
[1672989932219,1.19940301,1247.3,1247.1,33.77839793]
[1672989932532,1.19940301,1247.3,1247.2,12.31831147]
[1672989933165,1.19756927,1247.3,1247.2,12.31831147]
[1672989935044,1.19756927,1247.3,1247.2,15.52611147]
[1672989938206,1.19756927,1247.3,1247.2,16.72470586]
[1672989939356,1.19756927,1247.3,1247.2,13.51690586]
[1672989945562,1.19756927,1247.3,1247.2,11.71759439]
[1672989946827,1.19756927,1247.3,1247.2,13.51690586]
[1672989949244,1.19756927,1247.3,1247.2,11.71759439]
[1672989949662,6.20840264,1247.5,1247.2,11.71759439]
[1672989949871,6.20840264,1247.5,1247.3,10.519]
[1672989950082,6.20840264,1247.5,1247.4,2.5]
[1672989950299,3.2078,1247.5,1247.4,2.5]
[1672989950720,6.2001494,1247.5,1247.4,2.5]
[1672989956188,3.2078,1247.5,1247.4,2.5]
[1672989957972,3.60090069,1247.6,1247.4,2.5]
[1672989958189,3.2078,1247.5,1247.3,11.71759439]
[1672989958399,3.2078,1247.5,1247.4,2.5]
[1672989958611,5.7078,1247.5,1247.4,2.5]
[1672989959438,3.2078,1247.5,1247.4,2.5]
[1672989959654,5.7078,1247.5,1247.4,2.5]
[1672989960183,5.7078,1247.5,1247.3,11.71759439]
[1672989960397,9.30870069,1247.5,1247.4,2.5]
[1672989961021,6.80870069,1247.5,1247.4,2.5]
[1672989962396,6.80870069,1247.5,1247.3,11.71759439]
[1672989962604,2.9966249,1247.4,1247.3,11.71759439]
[1672989962816,8.7044249,1247.4,1247.3,11.71759439]
[1672989963126,6.2044249,1247.4,1247.3,11.71759439]
[1672989964288,3.2078,1247.4,1247.3,13.51690586]
[1672989964599,5.7078,1247.4,1247.3,13.51690586]
[1672989964810,3.2078,1247.4,1247.3,13.51690586]
[1672989966074,5.7078,1247.4,1247.3,13.51690586]
[1672989966386,6.20776684,1247.4,1247.3,12.31831147]
[1672989966593,6.20776684,1247.4,1247.3,14.71824092]
[1672989968385,3.2078,1247.4,1247.3,12.31831147]
[1672989969113,6.20777242,1247.4,1247.3,14.71824092]
[1672989971641,3.2078,1247.4,1247.3,12.31831147]
[1672989971844,6.2083207,1247.4,1247.3,14.71824092]
[1672989972054,6.2083207,1247.4,1247.3,14.34000313]
[1672989973217,6.2083207,1247.4,1247.3,12.91892945]
[1672989973426,6.2083207,1247.4,1247.3,14.34000879]
[1672989973849,6.2083207,1247.4,1247.3,12.91892945]
[1672989974164,6.2083207,1247.4,1247.3,14.34000722]
[1672989974575,3.0005207,1247.4,1247.3,14.34000722]
[1672989975734,3.0005207,1247.4,1247.3,12.91892945]
[1672989976685,2.40023912,1247.4,1247.3,17.34553143]
[1672989976896,5.40075982,1247.4,1247.3,14.34000705]
[1672989977739,2.40023912,1247.4,1247.3,14.34000705]
[1672989979512,6.2083207,1247.5,1247.3,14.34000705]
[1672989979729,3.0005207,1247.4,1247.3,12.91892945]
[1672989979936,5.40006767,1247.4,1247.3,12.91892945]
[1672989980148,5.40006767,1247.4,1247.3,14.33998227]
[1672989981204,2.39954697,1247.4,1247.3,14.33998227]
[1672989986255,2.39954697,1247.4,1247.3,17.34550665]
[1672989986673,2.39954697,1247.4,1247.3,14.33998227]
[1672989988994,1.79953087,1247.4,1247.3,18.1533772]
[1672989989202,1.19974079,1247.4,1247.3,18.15006169]
[1672989989407,1.19974079,1247.4,1247.3,14.94226169]
[1672989989627,1.19974079,1247.4,1247.3,18.15006169]
[1672989989628,2.99879689,1247.4,1247.3,18.15006169]
[1672989990468,1.79953087,1247.4,1247.3,20.55202165]
[1672989991407,1.79953087,1247.4,1247.3,17.34422165]
[1672989991726,1.79953087,1247.4,1247.3,14.34201278]
[1672989997193,1.79307594,1247.4,1247.3,14.34201278]
[1672989997404,1.79307594,1247.4,1247.3,17.34422165]
[1672989998356,1.79307594,1247.4,1247.3,14.34201278]
[1672990003080,4.19262291,1247.4,1247.3,14.34201278]
[1672990005179,4.19262291,1247.4,1247.3,17.34422165]
[1672990005702,4.19262291,1247.4,1247.3,14.34201278]
[1672990005910,2.39954697,1247.4,1247.3,14.34201278]
[1672990006662,2.39954697,1247.4,1247.3,17.34422165]
[1672990006867,2.39954697,1247.4,1247.3,14.34201278]
[1672990007083,2.39954697,1247.4,1247.3,17.34422165]
[1672990008971,1.19976292,1247.4,1247.3,27.53199064]
[1672990009497,1.19976281,1247.4,1247.3,27.53199064]
[1672990009917,1.19977616,1247.4,1247.3,27.53199064]
[1672990010132,1.19978112,1247.4,1247.3,27.53199064]
[1672990010343,4.89954697,1247.6,1247.3,27.53199064]
[1672990010554,2.39954697,1247.6,1247.5,10.42152301]
[1672990011181,5.40002489,1247.6,1247.5,12.22345251]
[1672990012017,5.40002489,1247.6,1247.5,17.22345251]
[1672990012226,2.489e-05,1247.7,1247.6,1.1814]
[1672990012437,3.2078,1247.9,1247.6,16.83144621]
[1672990012656,3.2078,1247.9,1247.8,9.82050858]
[1672990013275,3.2078,1247.9,1247.8,9.21882371]
[1672990014437,3.2078,1248.0,1247.9,2.5]
[1672990014755,5.7078,1248.0,1247.9,2.5]
[1672990016333,3.2078,1248.0,1247.9,2.5]
[1672990017164,3.2078,1248.0,1247.9,10.519]
[1672990018324,3.2078,1248.0,1247.8,8.019]
[1672990018533,3.2078,1248.0,1247.9,2.5]
[1672990023271,3.2078,1248.0,1247.9,10.519]
[1672990027046,5.7078,1248.1,1247.9,10.519]
[1672990027261,3.2078,1248.1,1247.9,10.519]
[1672990027467,2.5,1248.0,1247.9,10.519]
[1672990027670,5.7078,1248.1,1247.9,10.519]
[1672990028315,3.2078,1248.1,1247.9,10.519]
[1672990028525,5.7078,1248.1,1247.9,10.519]
[1672990028959,3.2078,1248.1,1247.9,10.519]
[1672990031999,3.2078,1248.1,1247.8,10.519]
[1672990032206,3.2078,1247.9,1247.8,10.519]
[1672990033469,3.2078,1247.9,1247.8,8.019]
[1672990034202,6.19842702,1247.9,1247.8,8.019]
[1672990034412,3.2078,1247.9,1247.8,8.019]
[1672990039457,3.2078,1247.9,1247.8,9.21882371]
[1672990040076,3.2078,1248.0,1247.9,2.5]
[1672990041767,6.19842702,1248.0,1247.9,2.5]
[1672990042194,5.60197338,1248.0,1247.9,2.5]
[1672990042401,8.5926004,1248.0,1247.9,2.5]
[1672990042718,5.60197338,1248.0,1247.9,2.5]
[1672990043132,8.5926004,1248.0,1247.9,2.5]
[1672990044512,5.3848004,1248.0,1247.9,2.5]
[1672990044728,6.19842702,1248.0,1247.9,2.5]
[1672990045034,2.99062702,1248.0,1247.9,2.5]
[1672990045246,6.19842702,1248.0,1247.9,2.5]
[1672990047245,6.19842702,1248.0,1247.9,3.69982371]
[1672990048289,6.19842702,1248.0,1247.9,2.5]
[1672990049132,6.19842702,1248.0,1247.9,3.69982371]
[1672990049342,3.2078,1248.0,1247.9,3.69982371]
[1672990049657,3.2078,1248.0,1247.9,1.19982371]
[1672990050083,5.7078,1248.0,1247.9,1.19982371]
[1672990050286,5.7078,1248.0,1247.7,2.96927972]
[1672990050501,6.20619551,1247.8,1247.7,3.66777114]
[1672990050818,8.70619551,1247.8,1247.7,3.66777114]
[1672990051128,8.70619551,1247.8,1247.7,5.46927972]
[1672990051343,8.70619551,1247.8,1247.7,2.96927972]
[1672990051555,5.7078,1247.8,1247.7,2.96927972]
[1672990052078,3.2078,1247.8,1247.7,2.96927972]
[1672990052287,3.2078,1247.8,1247.7,1.16777114]
[1672990053021,6.20704591,1247.8,1247.7,1.16777114]
[1672990053758,6.20694994,1247.8,1247.7,1.16777114]
[1672990054600,6.20694994,1247.8,1247.7,5.46927972]
[1672990056805,2.99914994,1247.8,1247.7,5.46927972]
[1672990057120,6.20694994,1247.8,1247.7,5.46927972]
[1672990058067,2.99914994,1247.8,1247.7,5.46927972]
[1672990058276,6.20694994,1247.8,1247.7,5.46927972]
[1672990058802,6.20694994,1247.8,1247.7,1.16777114]
[1672990060901,3.2078,1247.8,1247.5,1.80150858]
[1672990061115,5.60605951,1247.6,1247.5,1.80150858]
[1672990061320,8.10605951,1247.6,1247.5,1.80150858]
[1672990062577,11.10257422,1247.6,1247.5,1.80150858]
[1672990062790,8.10474983,1247.6,1247.4,6.70352003]
[1672990063104,8.10474983,1247.6,1247.5,1.80150858]
[1672990063318,5.60474983,1247.6,1247.5,4.30150858]
[1672990064685,5.60474983,1247.6,1247.5,2.5]
[1672990065519,5.60474983,1247.6,1247.5,4.30150858]
[1672990065734,7.40202767,1247.6,1247.5,4.30150858]
[1672990066894,5.00507784,1247.6,1247.5,4.30150858]
[1672990067094,7.40202767,1247.6,1247.5,4.30150858]
[1672990067516,1.79727784,1247.6,1247.5,4.30150858]
[1672990067732,5.00507784,1247.6,1247.5,4.30150858]
[1672990068882,7.40202767,1247.6,1247.5,4.30150858]
[1672990069306,5.00507784,1247.6,1247.5,4.30150858]
[1672990074460,1.79727784,1247.6,1247.5,4.30150858]
[1672990074658,5.00507784,1247.6,1247.5,4.30150858]
[1672990079931,7.40202767,1247.6,1247.5,4.30150858]
[1672990081298,5.60474983,1247.6,1247.5,4.30150858]
[1672990081928,7.40178839,1247.6,1247.5,4.30150858]
[1672990082668,5.60474983,1247.6,1247.5,4.30150858]
[1672990083931,2.39694983,1247.6,1247.5,4.30150858]
[1672990084139,7.40208581,1247.6,1247.5,4.30150858]
[1672990084350,5.60474983,1247.6,1247.5,4.30150858]
[1672990087813,2.39694983,1247.6,1247.5,4.30150858]
[1672990088021,5.60474983,1247.6,1247.5,4.30150858]
[1672990088760,5.60474983,1247.6,1247.5,6.70352003]
[1672990089814,8.60257422,1247.6,1247.5,6.70352003]
[1672990090127,5.60474983,1247.6,1247.5,4.90201145]
[1672990090545,8.60257422,1247.6,1247.5,6.70386987]
[1672990090755,5.60474983,1247.6,1247.5,4.90201145]
[1672990090960,5.60474983,1247.6,1247.5,6.7038966]
[1672990091281,8.60257422,1247.6,1247.5,6.70389669]
[1672990093390,8.60257422,1247.6,1247.5,4.90201145]
[1672990094021,5.39477422,1247.6,1247.5,4.90201145]
[1672990094543,8.60257422,1247.6,1247.5,4.90201145]
[1672990096539,8.60257422,1247.6,1247.5,6.32286312]
[1672990096853,6.20562439,1247.6,1247.5,4.90201145]
[1672990097064,8.6061266,1247.6,1247.5,6.32286362]
[1672990097267,2.99782439,1247.6,1247.5,6.32286362]
[1672990097484,8.60621912,1247.6,1247.5,6.32286362]
[1672990097697,5.39841912,1247.6,1247.5,6.32286362]
[1672990097907,8.60621912,1247.6,1247.5,6.32286362]
[1672990098540,6.20562439,1247.6,1247.5,6.32286362]
[1672990099901,2.99782439,1247.6,1247.5,6.32286362]
[1672990100126,8.60694724,1247.6,1247.5,9.32537669]
[1672990100654,5.39914724,1247.6,1247.5,9.32537669]
[1672990100860,5.39914724,1247.6,1247.5,6.92336524]
[1672990101281,2.40132285,1247.6,1247.5,6.92336524]
[1672990102016,5.39914724,1247.6,1247.5,6.92336524]
[1672990102231,2.99782439,1247.6,1247.5,6.32525749]
[1672990103490,5.39976884,1247.6,1247.5,9.32777056]
[1672990103910,2.99782439,1247.6,1247.5,9.32777056]
[1672990104119,5.39972126,1247.6,1247.5,9.32777056]
[1672990104331,2.99782439,1247.6,1247.5,9.32777056]
[1672990107063,2.99782439,1247.6,1247.5,6.32525749]
[1672990108117,2.99782439,1247.6,1247.5,9.32777056]
[1672990109483,2.99782439,1247.6,1247.5,6.32525749]
[1672990109694,6.20562439,1247.6,1247.5,6.32525749]
[1672990109899,6.20562439,1247.6,1247.5,9.32777056]
[1672990110843,5.6097642,1247.6,1247.5,6.92336524]
[1672990111904,8.60758859,1247.6,1247.5,6.92336524]
[1672990113796,5.39978859,1247.6,1247.5,6.92336524]
[1672990115061,5.39978859,1247.6,1247.5,9.32784572]
[1672990115270,5.39978859,1247.6,1247.5,6.92336524]
[1672990116212,2.4019642,1247.6,1247.5,6.92336524]
[1672990117785,5.39978859,1247.6,1247.5,9.32772902]
[1672990118315,5.39978859,1247.6,1247.5,6.92336524]
[1672990118519,5.39978859,1247.6,1247.5,9.32772914]
[1672990121780,2.4019642,1247.6,1247.5,6.92336524]
[1672990122522,2.39408691,1247.6,1247.5,6.92336524]
[1672990123787,5.7078,1247.7,1247.5,4.30337463]
[1672990123987,9.30870069,1247.7,1247.5,4.30337463]
[1672990124304,3.00177191,1247.6,1247.5,4.30337463]
[1672990124518,3.00177191,1247.6,1247.5,6.70778075]
[1672990124519,5.50177191,1247.6,1247.5,6.70778075]
[1672990125143,5.50177191,1247.6,1247.5,4.90440612]
[1672990125562,5.50177191,1247.6,1247.5,6.70758789]
[1672990125984,3.00177191,1247.6,1247.5,6.70758789]
[1672990127046,6.20957191,1247.6,1247.5,6.70758789]
[1672990127355,3.2078,1247.6,1247.5,4.20758789]
[1672990127563,5.7078,1247.6,1247.4,1.80318177]
[1672990127781,2.99953079,1247.5,1247.4,1.80318177]
[1672990127984,5.49953079,1247.5,1247.4,4.30318177]
[1672990128196,5.49953079,1247.5,1247.4,1.80318177]
[1672990128405,5.49953079,1247.5,1247.4,4.30318177]
[1672990128721,8.70733079,1247.5,1247.4,1.80318177]
[1672990129984,5.49953079,1247.5,1247.4,1.80318177]
[1672990130189,8.70733079,1247.5,1247.4,1.80318177]
[1672990130512,8.70733079,1247.5,1247.4,4.30318177]
[1672990130713,8.70733079,1247.5,1247.4,1.80318177]
[1672990132081,5.49953079,1247.5,1247.4,1.80318177]
[1672990132291,8.70733079,1247.5,1247.4,1.80318177]
[1672990133554,5.49953079,1247.5,1247.4,1.80318177]
[1672990133770,8.70733079,1247.5,1247.4,1.80318177]
[1672990133982,5.49953079,1247.5,1247.4,1.80318177]
[1672990134294,8.70733079,1247.5,1247.3,9.20758789]
[1672990134506,4.29803982,1247.4,1247.3,9.20758789]
[1672990134710,1.79803982,1247.4,1247.3,9.20758789]
[1672990134920,1.79803982,1247.4,1247.3,7.40440612]
[1672990135769,5.00583982,1247.4,1247.3,7.40440612]
[1672990135981,5.00583982,1247.4,1247.3,9.20511507]
[1672990136508,5.00583982,1247.4,1247.3,7.40440612]
[1672990136823,1.79803982,1247.4,1247.3,7.40440612]
[1672990137241,5.00583982,1247.4,1247.3,9.20501043]
[1672990137872,1.79803982,1247.4,1247.3,9.20501043]
[1672990138085,5.00583982,1247.4,1247.3,7.40440612]
[1672990138607,1.79803982,1247.4,1247.3,7.40440612]
[1672990138928,5.00583982,1247.4,1247.3,7.40440612]
[1672990139138,5.00583982,1247.4,1247.3,9.20487214]
[1672990140080,5.00583982,1247.4,1247.3,7.40440612]
[1672990141128,3.2078,1247.4,1247.3,6.80029844]
[1672990145756,5.00470186,1247.4,1247.3,6.80029844]
[1672990146590,1.79690186,1247.4,1247.3,6.80029844]
[1672990146799,5.00470186,1247.4,1247.3,6.80029844]
[1672990147431,1.79690186,1247.4,1247.3,6.80029844]
[1672990147642,5.00470186,1247.4,1247.3,6.80029844]
[1672990149008,5.00470186,1247.4,1247.3,9.20470456]
[1672990149219,5.00470186,1247.4,1247.3,6.80029844]
[1672990149951,1.79690186,1247.4,1247.3,6.80029844]
[1672990151635,5.00470186,1247.4,1247.3,6.80029844]
[1672990151951,5.00470186,1247.4,1247.3,9.20470456]
[1672990153206,1.79690186,1247.4,1247.3,9.20470456]
[1672990153525,1.79690186,1247.4,1247.3,7.40440612]
[1672990156145,1.79690186,1247.4,1247.3,8.82541228]
[1672990162572,4.19303071,1247.4,1247.3,8.82541228]
[1672990163201,2.39612885,1247.4,1247.3,9.42351923]
[1672990163825,2.39612885,1247.4,1247.3,11.82740964]
[1672990165406,2.39612885,1247.4,1247.3,9.42351923]
[1672990176228,1.80026824,1247.4,1247.3,14.44000616]
[1672990176851,1.80026824,1247.4,1247.3,17.44508929]
[1672990188836,1.80026824,1247.4,1247.3,14.44000616]
[1672990192722,4.19639709,1247.6,1247.4,0.31571886]
[1672990192937,4.19639709,1247.6,1247.5,11.82626813]
[1672990193570,1.80026824,1247.6,1247.5,17.44292948]
[1672990194523,4.19639709,1247.6,1247.5,17.44292948]
[1672990194736,4.19639709,1247.6,1247.5,19.84525294]
[1672990195047,1.80026824,1247.6,1247.5,16.84232962]
[1672990196415,4.19639709,1247.6,1247.5,16.84232962]
[1672990196944,1.80026824,1247.6,1247.5,16.84232962]
[1672990198311,1.80026824,1247.6,1247.5,19.84525294]
[1672990198518,1.80026824,1247.6,1247.5,16.84232962]
[1672990200931,1.80026824,1247.6,1247.5,15.42132346]
[1672990201143,7.40419709,1247.6,1247.5,15.42132346]
[1672990201563,7.40419709,1247.6,1247.5,17.22200723]
[1672990202830,5.00806824,1247.6,1247.5,15.42132346]
[1672990206823,1.80026824,1247.6,1247.5,15.42132346]
[1672990207668,1.80026824,1247.6,1247.5,16.84212625]
[1672990208406,1.80026824,1247.6,1247.5,15.42132346]
[1672990208929,1.80026824,1247.6,1247.5,16.84212787]
[1672990211028,4.19639709,1247.6,1247.5,16.84212787]
[1672990214814,2.39612885,1247.6,1247.5,16.84212787]
[1672990218704,2.39612885,1247.6,1247.5,8.82312787]
[1672990218914,5.39565964,1247.6,1247.5,9.20404183]
[1672990219231,5.39565964,1247.6,1247.5,6.80171837]
[1672990219440,2.39612885,1247.6,1247.5,9.20404183]
[1672990219647,5.39565964,1247.6,1247.5,9.20404183]
[1672990219859,8.60345964,1247.6,1247.5,9.20404183]
[1672990222697,5.60392885,1247.6,1247.5,9.20404183]
[1672990222897,8.60345964,1247.6,1247.5,7.40232346]
[1672990223323,4.19520758,1247.6,1247.5,11.8260304]
[1672990224268,2.39612885,1247.6,1247.5,11.8260304]
[1672990224799,2.39612885,1247.6,1247.5,8.82310708]
[1672990225004,2.39612885,1247.6,1247.5,11.8260304]
[1672990225749,2.39612885,1247.6,1247.5,8.82310708]
[1672990227112,2.39612885,1247.6,1247.5,11.8260304]
[1672990231005,2.39612885,1247.6,1247.5,9.42370694]
[1672990233634,2.39612885,1247.6,1247.5,17.44270694]
[1672990234152,4.19636043,1247.6,1247.5,17.44270694]
[1672990234369,2.39612885,1247.6,1247.5,17.44270694]
[1672990236676,4.19624791,1247.6,1247.5,17.44270694]
[1672990239841,2.39612885,1247.6,1247.5,17.44270694]
[1672990241102,4.19616068,1247.6,1247.5,17.44270694]
[1672990241735,4.1961461,1247.6,1247.5,17.44270694]
[1672990242882,1.80001725,1247.6,1247.5,17.44270694]
[1672990243199,4.1961461,1247.6,1247.5,17.44270694]
[1672990248350,1.80001725,1247.6,1247.5,17.44270694]
[1672990255390,1.79328454,1247.6,1247.5,14.43978362]
[1672990255597,1.79328454,1247.7,1247.5,14.43978362]
[1672990255914,4.18941339,1247.7,1247.6,6.92439797]
[1672990258121,4.18941339,1247.7,1247.6,9.32695113]
[1672990258858,1.79328454,1247.7,1247.6,14.94339797]
[1672990261691,4.18941339,1247.7,1247.6,14.94339797]
[1672990262527,2.39612885,1247.7,1247.6,14.94339797]
[1672990263274,2.39612885,1247.8,1247.6,14.94339797]
[1672990263478,2.39612885,1247.8,1247.7,11.32349088]
[1672990264740,5.39565964,1247.8,1247.7,9.90270726]
[1672990264950,2.99953079,1247.8,1247.7,11.70453009]
[1672990265583,8.60641731,1247.8,1247.7,11.70453009]
[1672990265785,5.39858392,1247.8,1247.7,13.72596106]
[1672990265995,2.39905313,1247.9,1247.8,2.5]
[1672990266204,2.39905313,1247.9,1247.8,6.32268681]
[1672990266738,2.39905313,1247.9,1247.8,6.70313636]
[1672990267371,2.39905313,1247.9,1247.8,4.90216293]
[1672990267575,2.39905313,1247.9,1247.8,6.32261544]
[1672990267781,2.39905313,1247.9,1247.8,4.90216293]
[1672990268418,2.39905313,1247.9,1247.8,6.70322019]
[1672990268945,2.39905313,1247.9,1247.8,4.30105726]
[1672990269786,2.39905313,1247.9,1247.8,4.90216293]
[1672990270199,2.39905313,1247.9,1247.8,6.70278606]
[1672990271038,2.39905313,1247.9,1247.8,4.30062313]
[1672990271248,2.39905313,1247.9,1247.8,1.80062313]
[1672990271462,2.99953079,1247.9,1247.8,1.20030841]
[1672990271671,5.49953079,1247.9,1247.8,1.20030841]
[1672990272092,5.49953079,1247.9,1247.8,3.70030841]
[1672990272731,2.99953079,1247.9,1247.8,3.70030841]
[1672990273045,2.99953079,1247.9,1247.8,5.50093154]
[1672990273249,5.49953079,1247.9,1247.8,5.50093154]
[1672990273671,2.99953079,1247.9,1247.8,5.50093154]
[1672990273883,6.20733079,1247.9,1247.8,5.50093154]
[1672990274097,8.6051864,1247.9,1247.8,5.50093154]
[1672990274306,6.20733079,1247.9,1247.8,5.50093154]
[1672990274831,8.60512428,1247.9,1247.8,5.50093154]
[1672990275352,6.20733079,1247.9,1247.8,5.50093154]
[1672990275671,2.99953079,1247.9,1247.8,5.50093154]
[1672990277457,6.20733079,1247.9,1247.8,5.50093154]
[1672990278828,2.99953079,1247.9,1247.8,5.50093154]
[1672990279463,5.39732122,1247.9,1247.8,5.50093154]
[1672990282408,2.99953079,1247.9,1247.8,5.50093154]
[1672990286302,2.99953079,1247.9,1247.8,4.30062313]
[1672990286505,2.99953079,1247.9,1247.8,5.50127091]
[1672990286717,2.99953079,1247.9,1247.8,4.30062313]
[1672990287341,5.39809535,1247.9,1247.8,4.30062313]
[1672990288607,5.39830846,1247.9,1247.8,4.30062313]
[1672990288807,5.39830846,1247.9,1247.8,6.32263998]
[1672990288808,2.39877767,1247.9,1247.8,6.32263998]
[1672990291650,2.39877767,1247.9,1247.8,4.90216293]
[1672990292393,2.39877767,1247.9,1247.8,6.32265197]
[1672990293020,2.39877767,1247.9,1247.8,4.90216293]
[1672990294275,2.39877767,1247.9,1247.8,6.32265663]
[1672990297338,2.39877767,1247.9,1247.8,9.32627098]
[1672990297540,2.39877767,1247.9,1247.8,6.92410805]
[1672990297748,2.39877767,1247.9,1247.8,9.32616872]
[1672990298069,2.39877767,1247.9,1247.8,6.32255437]
[1672990298493,2.39877767,1247.9,1247.8,17.34516872]
[1672990298701,2.39877767,1247.9,1247.8,6.32255437]
[1672990304067,5.39830846,1247.9,1247.8,6.32255437]
[1672990308061,2.39877767,1247.9,1247.8,6.32255437]
[1672990311212,5.39830846,1247.9,1247.8,6.32255437]
[1672990312791,2.99953079,1247.9,1247.8,6.32255437]
[1672990315518,2.99953079,1247.9,1247.8,1.80244018]
[1672990315732,6.80870069,1248.0,1247.8,4.30244018]
[1672990315932,2.5,1247.9,1247.8,5.50409566]
[1672990316140,2.5,1247.9,1247.8,3.00409566]
[1672990316563,2.5,1247.9,1247.8,1.80244018]
[1672990316776,2.5,1247.9,1247.8,5.50410028]
[1672990316980,2.5,1247.9,1247.8,4.30244018]
[1672990317194,5.50114116,1247.9,1247.8,4.30244018]
[1672990317404,6.80870069,1248.0,1247.8,4.30244018]
[1672990317610,6.10090069,1248.0,1247.9,3.70157049]
[1672990317820,9.30870069,1248.0,1247.9,1.20157049]
[1672990318673,9.30870069,1248.0,1247.8,5.50401067]
[1672990318885,2.5,1247.9,1247.8,5.50401067]
[1672990320993,5.7078,1247.9,1247.8,3.00401067]
[1672990321193,5.7078,1247.9,1247.8,1.20157049]
[1672990321929,5.7078,1247.9,1247.8,3.70157049]
[1672990322671,5.7078,1247.9,1247.8,1.20157049]
[1672990322881,5.7078,1247.9,1247.8,3.00401067]
[1672990323090,5.7078,1247.9,1247.8,1.20157049]
[1672990323609,5.7078,1247.9,1247.8,3.70157049]
[1672990323820,5.7078,1247.9,1247.8,1.20157049]
[1672990324247,2.5,1247.9,1247.8,1.20157049]
[1672990324668,5.7078,1247.9,1247.8,1.20157049]
[1672990326651,5.7078,1247.9,1247.7,8.00401067]
[1672990326868,2.9990557,1247.8,1247.7,8.00401067]
[1672990327611,6.2068557,1247.8,1247.7,8.00401067]
[1672990329076,6.2068557,1247.8,1247.7,6.20157049]
[1672990329492,6.2068557,1247.8,1247.7,8.00401067]
[1672990329701,3.2078,1247.8,1247.7,1.20157049]
[1672990329922,6.20606585,1247.8,1247.6,3.00401067]
[1672990330128,7.89678655,1247.7,1247.6,1.80244018]
[1672990330345,7.89678655,1247.7,1247.6,4.30244018]
[1672990330554,4.8985718,1247.7,1247.6,4.30244018]
[1672990331918,8.1063718,1247.7,1247.6,4.30244018]
[1672990332441,8.1063718,1247.7,1247.6,5.50258919]
[1672990332658,5.6063718,1247.7,1247.6,5.50258919]
[1672990332874,5.6063718,1247.7,1247.6,3.00258919]
[1672990333072,5.6063718,1247.7,1247.6,5.50258919]
[1672990333820,2.3985718,1247.7,1247.6,5.50258919]
[1672990334021,5.6063718,1247.7,1247.6,5.50258919]
[1672990337074,2.3985718,1247.7,1247.6,5.50258919]
[1672990337277,5.6063718,1247.7,1247.6,5.50258919]
[1672990337489,5.6063718,1247.7,1247.6,3.00258919]